bitfinex/quotes_ETHUSD_20251108
["timestamp","ask_amount","ask_price","bid_price","bid_amount"]
[1762634618688,6.2803077,3406.1,3406.0,0.001]
[1762634623689,3.80009401,3406.1,3406.0,0.001]
[1762634623995,6.73600311,3406.1,3406.0,0.001]
[1762634625804,6.61828006,3406.1,3406.0,0.001]
[1762634627400,7.0789622,3406.1,3406.0,0.001]
[1762634627902,7.07778853,3406.1,3406.0,0.001]
[1762634628703,6.78761518,3406.1,3406.0,0.001]
[1762634633677,6.41781432,3406.1,3406.0,0.001]
[1762634635307,9.51581432,3406.1,3406.0,0.001]
[1762634635512,6.41781432,3406.1,3406.0,0.001]
[1762634635913,6.41981432,3406.1,3406.0,0.001]
[1762634637394,10.24337525,3406.1,3406.0,0.001]
[1762634638836,11.69771098,3406.1,3406.0,0.001]
[1762634639134,12.12901098,3406.1,3406.0,0.001]
[1762634639276,8.05730099,3405.7,3405.6,0.001]
[1762634639479,9.1546555,3405.7,3405.6,0.001]
[1762634639710,9.2177555,3405.7,3405.6,0.001]
[1762634639917,10.09784222,3405.7,3405.6,0.001]
[1762634640826,11.35755422,3405.7,3405.6,0.001]
[1762634641185,10.91815422,3405.7,3405.6,0.001]
[1762634641411,11.37883883,3405.7,3405.6,0.001]
[1762634641784,11.81443883,3405.7,3405.6,0.001]
[1762634642485,11.37883883,3405.7,3405.6,0.001]
[1762634643915,11.14163274,3405.7,3405.6,0.001]
[1762634648195,11.11654813,3405.7,3405.6,0.001]
[1762634648395,10.61784813,3405.7,3405.6,0.001]
[1762634648595,10.61784813,3405.7,3405.6,0.4681]
[1762634648817,10.61784813,3405.7,3405.6,0.9296]
[1762634649029,10.28734232,3405.7,3405.6,0.4681]
[1762634649407,10.28734232,3405.7,3405.6,0.001]
[1762634649607,10.35044232,3405.7,3405.6,0.001]
[1762634651032,10.78604232,3405.7,3405.6,0.001]
[1762634651530,10.35044232,3405.7,3405.6,0.001]
[1762634651728,3.34201659,3405.4,3405.3,0.001]
[1762634651894,9.65473169,3405.4,3405.3,0.001]
[1762634652096,10.07382617,3405.4,3405.3,0.001]
[1762634653595,10.50942617,3405.4,3405.3,0.001]
[1762634653992,10.24378065,3405.4,3405.3,0.001]
[1762634654206,10.91420154,3405.4,3405.3,0.001]
[1762634659151,10.70652824,3405.4,3405.3,0.001]
[1762634660630,10.27092824,3405.4,3405.3,0.001]
[1762634661626,10.73167621,3405.4,3405.3,0.001]
[1762634661816,11.16727621,3405.4,3405.3,0.001]
[1762634664154,11.00083755,3405.4,3405.3,0.001]
[1762634664450,10.56523755,3405.4,3405.3,0.001]
[1762634664747,10.56523755,3405.4,3405.3,0.9296]
[1762634664748,10.50213755,3405.4,3405.3,0.9296]
[1762634664948,10.50213755,3405.4,3405.3,0.4681]
[1762634665147,10.50213755,3405.4,3405.3,0.001]
[1762634665352,10.56903755,3405.4,3405.3,0.001]
[1762634665647,13.66703755,3405.4,3405.3,0.001]
[1762634665849,10.56903755,3405.4,3405.3,0.001]
[1762634666554,10.56977508,3405.4,3405.3,0.001]
[1762634668653,10.10902711,3405.4,3405.3,0.001]
[1762634669151,7.812272,3405.4,3405.3,0.001]
[1762634669350,10.74878459,3405.4,3405.3,0.001]
[1762634670358,10.52940664,3405.4,3405.3,0.001]
[1762634671069,10.53140664,3405.4,3405.3,0.001]
[1762634673971,10.46450664,3405.4,3405.3,0.001]
[1762634674170,7.70977527,3405.4,3405.3,0.961]
[1762634674472,8.70401151,3405.4,3405.3,0.961]
[1762634674653,9.10951551,3405.4,3405.3,0.961]
[1762634676275,8.70401151,3405.4,3405.3,0.961]
[1762634677153,9.16470517,3405.4,3405.3,0.961]
[1762634678643,8.70401151,3405.4,3405.3,0.961]
[1762634679349,8.50291864,3405.4,3405.3,0.961]
[1762634682576,4.00675352,3405.4,3405.3,0.961]
[1762634684479,3.7014003,3405.4,3405.3,0.961]
[1762634684883,0.002,3405.4,3405.3,0.961]
[1762634685081,0.002,3405.4,3405.3,1.37049548]
[1762634689608,2.70421313,3405.6,3405.3,1.38329548]
[1762634689810,2.70421313,3405.6,3405.5,0.4845]
[1762634690305,2.70421313,3405.6,3405.5,0.9726]
[1762634690618,3.12330761,3405.6,3405.5,0.9726]
[1762634691486,3.39812487,3405.6,3405.5,0.9726]
[1762634693810,3.39812484,3405.6,3405.5,0.9726]
[1762634694479,3.26525724,3405.6,3405.5,0.9726]
[1762634694879,2.84616276,3405.6,3405.5,0.9726]
[1762634696985,3.26525724,3405.6,3405.5,0.9726]
[1762634699714,2.96912484,3405.6,3405.5,0.9726]
[1762634699911,3.85192827,3405.6,3405.5,0.9726]
[1762634700896,3.43283379,3405.6,3405.5,0.9726]
[1762634703632,1.15762066,3405.6,3405.5,0.4845]
[1762634703831,1.15762066,3405.6,3405.5,0.9812]
[1762634703832,0.27481723,3405.6,3405.5,0.9812]
[1762634704234,0.27481723,3405.6,3405.5,4.60316188]
[1762634704610,4.11088666,3406.2,3406.1,0.4698]
[1762634705028,4.11088666,3406.2,3406.1,0.9665]
[1762634705942,4.11288666,3406.2,3406.1,0.9665]
[1762634707058,1.261712,3406.2,3406.1,0.9665]
[1762634707206,0.002,3406.2,3406.1,0.9665]
[1762634708964,0.002,3406.2,3406.1,4.29561134]
[1762634709168,0.002,3406.2,3406.1,5.17807978]
[1762634709367,0.002,3406.5,3406.4,2.93565054]
[1762634709659,7.43096101,3407.4,3407.0,0.4698]
[1762634709660,2.93490441,3407.3,3407.0,0.4698]
[1762634709946,2.93490441,3407.3,3407.2,0.4698]
[1762634710115,2.93478631,3407.5,3407.2,0.4698]
[1762634710320,2.93478631,3407.5,3407.4,0.4698]
[1762634710522,8.50574181,3407.5,3407.4,0.05070552]
[1762634710914,2.93496125,3407.2,3406.7,0.1831]
[1762634711230,7.43137475,3407.0,3406.7,0.6798]
[1762634711628,7.43137475,3407.0,3406.7,0.1831]
[1762634711814,7.43137475,3407.0,3406.9,0.4698]
[1762634712016,2.93546662,3406.7,3406.2,0.1831]
[1762634712221,2.93546662,3406.7,3406.4,0.4967]
[1762634712455,2.93546662,3406.7,3406.6,0.4698]
[1762634712768,6.45208565,3407.0,3406.6,0.4698]
[1762634712769,6.06791571,3407.0,3406.6,0.4698]
[1762634712965,7.92800445,3407.0,3406.7,0.4967]
[1762634713168,2.93524492,3406.9,3406.7,0.4967]
[1762634713521,2.93524492,3406.9,3406.8,0.4698]
[1762634713956,2.93524492,3406.9,3406.8,0.9665]
[1762634714752,2.79833334,3406.9,3406.8,0.9665]
[1762634715063,4.39103625,3406.9,3406.2,0.6798]
[1762634715251,2.9354423,3406.7,3406.3,0.4967]
[1762634715422,2.9354423,3406.7,3406.6,0.4698]
[1762634715831,2.9354423,3406.7,3406.6,0.9665]
[1762634716027,2.93534253,3406.8,3406.6,0.9665]
[1762634716244,2.93534253,3406.8,3406.7,0.4698]
[1762634716636,0.27425383,3406.8,3406.7,0.9665]
[1762634718855,1.93094533,3406.8,3406.2,0.1831]
[1762634719043,3.6292809,3406.7,3406.2,0.1831]
[1762634719253,0.27425383,3406.6,3406.3,0.4967]
[1762634719449,0.27425383,3406.5,3406.3,0.4967]
[1762634719642,0.00562916,3406.4,3406.3,0.9665]
[1762634720385,0.42521576,3406.4,3406.3,0.9665]
[1762634720588,8.33853142,3406.4,3405.2,2.93663912]
[1762634720740,0.2622,3406.3,3405.7,4.31542199]
[1762634721089,0.4195866,3406.3,3405.8,2.93614205]
[1762634721284,0.4195866,3406.3,3406.2,0.4698]
[1762634721584,3.35532332,3406.3,3406.2,0.4698]
[1762634721743,2.93583853,3406.2,3405.9,0.4967]
[1762634722175,4.49616512,3406.4,3406.1,0.4698]
[1762634722370,5.08139275,3406.4,3406.1,0.4698]
[1762634722681,2.93573672,3406.3,3406.1,0.4698]
[1762634724689,2.67143549,3406.3,3406.1,0.4698]
[1762634725489,3.20602291,3406.2,3405.3,1.03001123]
[1762634725656,4.49616512,3406.0,3405.5,0.4967]
[1762634725875,2.93613496,3405.9,3405.5,0.4967]
[1762634726397,2.93618289,3405.8,3405.5,0.4967]
[1762634727286,2.93612339,3405.9,3405.5,0.4967]
[1762634727487,2.93616967,3405.8,3405.5,0.4967]
[1762634727687,0.2702,3405.6,3405.3,0.001]
[1762634727877,7.43248095,3405.7,3405.4,0.4967]
[1762634728288,7.92918095,3405.7,3405.4,0.4967]
[1762634729763,2.93631583,3405.7,3405.4,0.4967]
[1762634731574,4.1959254,3405.8,3405.4,0.4967]
[1762634731789,0.27463131,3405.7,3405.4,0.4967]
[1762634731988,0.27463131,3405.6,3405.4,0.4967]
[1762634732273,0.27463131,3405.5,3405.3,0.001]
[1762634732469,0.27463131,3405.4,3405.3,2.93759883]
[1762634732713,0.27463131,3405.4,3405.3,3.54474541]
[1762634733092,0.27463131,3405.4,3405.3,4.49324541]
[1762634735025,1.259712,3405.9,3405.5,2.93641086]
[1762634735229,0.46060386,3407.5,3406.0,2.9359953]
[1762634735373,4.71724881,3407.3,3406.1,1.09851441]
[1762634735573,1.259712,3406.8,3406.1,0.3029]
[1762634735821,1.39477073,3406.7,3406.1,0.3029]
[1762634736024,1.39477073,3406.7,3406.2,3.81800585]
[1762634736588,1.39477073,3406.7,3406.3,2.93573672]
[1762634737188,0.90068553,3406.7,3406.4,2.93564996]
[1762634737612,0.90068553,3406.7,3406.6,0.3029]
[1762634738257,0.90068553,3406.7,3406.6,1.18510893]
[1762634738530,2.08032528,3406.7,3406.6,0.88220893]
[1762634740036,1.82303953,3406.7,3406.6,0.88220893]
[1762634740423,4.75843155,3406.7,3406.6,0.88220893]
[1762634741030,1.82303953,3406.7,3406.1,3.81840701]
[1762634741832,1.82303953,3406.7,3406.2,2.9358016]
[1762634742196,1.82303953,3406.7,3406.3,2.93571809]
[1762634742834,1.82303953,3406.7,3406.4,0.88252814]
[1762634744536,3.3905709,3406.5,3405.8,2.93611449]
[1762634744700,0.97425695,3406.4,3405.9,2.9360815]
[1762634744900,0.82487566,3406.4,3406.0,2.93599067]
[1762634745237,1.32407566,3406.4,3406.0,2.93599067]
[1762634745815,0.82487566,3406.4,3406.0,2.93598583]
[1762634746021,1.32407566,3406.4,3406.0,2.93598583]
[1762634747055,0.27478978,3406.3,3406.1,2.93589959]
[1762634747256,0.27478978,3406.2,3406.1,2.93589959]
[1762634747465,4.91244881,3406.9,3406.1,2.93589959]
[1762634747466,0.005,3407.9,3407.1,0.3029]
[1762634747762,0.005,3407.9,3407.8,0.4493]
[1762634747969,0.005,3407.9,3407.8,0.3029]
[1762634748259,0.005,3407.9,3407.8,3.5402445]
[1762634749947,2.76411528,3408.6,3407.9,2.93434647]
[1762634750269,2.76411528,3408.6,3407.8,0.3029]
[1762634750270,2.03285602,3408.5,3407.8,3.23734179]
[1762634750465,1.259712,3408.4,3407.8,0.3029]
[1762634750963,1.33563474,3408.4,3407.8,3.23731748]
[1762634751270,1.33563474,3408.4,3407.9,2.93433857]
[1762634751570,1.33563474,3408.4,3407.8,0.3029]
[1762634751730,0.68014757,3408.3,3407.8,3.23734181]
[1762634754463,0.68014757,3408.3,3407.9,2.93434223]
[1762634755031,0.42444825,3408.3,3407.9,2.93434223]
[1762634755358,0.77314402,3408.5,3408.2,0.3032]
[1762634755863,0.77314402,3408.5,3408.0,2.93426168]
[1762634756377,1.27234402,3408.5,3408.0,2.93426168]
[1762634756870,5.46595188,3408.5,3407.8,0.001]
[1762634757232,1.94877876,3408.5,3407.8,0.001]
[1762634757432,0.455,3407.9,3407.8,0.001]
[1762634758479,0.9542,3407.9,3407.8,0.001]
[1762634758981,2.32873474,3407.9,3407.8,0.001]
[1762634759353,2.10270227,3407.9,3407.8,0.001]
[1762634759658,0.72816753,3407.9,3407.8,0.001]
[1762634760029,0.43350614,3407.9,3407.8,0.001]
[1762634760379,0.27316753,3407.9,3407.8,0.4885]
[1762634761269,0.27316753,3407.9,3407.8,3.8782445]
[1762634761469,0.27316753,3407.9,3407.8,4.58332249]
[1762634763276,0.002,3408.6,3408.4,2.93392438]
[1762634763439,0.27334835,3408.5,3408.4,2.93392438]
[1762634763836,0.27334835,3408.5,3408.4,3.41702438]
[1762634764236,0.27334835,3408.5,3408.4,0.4831]
[1762634765068,0.09296179,3408.5,3408.4,0.4831]
[1762634765565,0.09296179,3408.5,3408.2,2.93409502]
[1762634765768,0.4802,3408.3,3407.8,0.001]
[1762634765976,0.002,3408.6,3407.8,3.41454242]
[1762634766179,0.002,3408.6,3408.2,0.4831]
[1762634766479,0.002,3408.6,3408.5,0.4831]
[1762634767547,0.002,3408.6,3408.5,3.89604186]
[1762634770164,0.1979,3409.6,3409.2,0.4831]
[1762634770358,0.005,3409.9,3409.5,0.4831]
[1762634770595,0.4802,3409.3,3408.9,0.1633]
[1762634770801,1.24163474,3409.8,3408.9,0.1633]
[1762634771006,2.93301646,3409.5,3408.7,2.9336605]
[1762634771311,2.93303891,3409.5,3408.7,2.93364429]
[1762634771599,2.93306879,3409.4,3408.8,0.4791]
[1762634772399,3.71870353,3409.4,3408.7,2.93364429]
[1762634772559,0.78563474,3409.3,3408.6,0.4791]
[1762634773005,0.78563474,3409.3,3408.4,3.08031571]
[1762634773006,3.38928711,3409.2,3408.4,3.08031571]
[1762634773298,0.78563474,3409.2,3408.5,3.41293002]
[1762634773508,0.78563474,3409.2,3408.6,2.93375579]
[1762634773660,0.78563474,3409.2,3408.5,2.93384015]
[1762634773865,0.78563474,3409.2,3408.6,3.41284203]
[1762634775266,2.93315566,3409.3,3408.6,3.41284203]
[1762634775916,2.93324109,3409.2,3408.6,3.41284203]
[1762634776079,2.93332662,3409.1,3408.4,2.93491291]
[1762634776361,2.93341356,3409.0,3408.4,0.001]
[1762634776799,2.93335504,3409.1,3408.4,2.93490513]
[1762634777100,0.27417193,3409.0,3408.5,2.93383044]
[1762634777286,0.27417193,3408.9,3408.5,2.93383044]
[1762634777484,0.27417193,3408.8,3408.5,2.93383044]
[1762634777685,0.27417193,3408.7,3408.4,0.4801]
[1762634777891,0.4802,3408.5,3408.4,0.001]
[1762634778067,0.75437193,3408.5,3408.4,0.001]
[1762634779006,0.75474277,3408.5,3408.4,0.001]
[1762634779302,1.51395027,3408.5,3408.4,0.001]
[1762634779506,4.14458463,3408.5,3408.4,0.001]
[1762634780253,3.91806436,3408.5,3408.4,0.001]
[1762634780802,3.46206436,3408.5,3408.4,0.001]
[1762634781230,3.97603857,3408.5,3408.4,0.001]
[1762634781603,3.46206436,3408.5,3408.4,0.001]
[1762634782016,0.5282225,3408.5,3408.4,0.001]
[1762634783008,4.6032252,3408.5,3408.4,0.001]
[1762634783207,4.43203857,3408.5,3408.4,0.001]
[1762634785453,4.29402399,3408.5,3408.4,0.001]
[1762634785833,5.55373599,3408.5,3408.4,0.001]
[1762634788117,5.95923999,3408.5,3408.4,0.001]
[1762634788320,7.32026715,3408.5,3408.4,0.001]
[1762634788727,3.3396902,3408.1,3408.0,0.001]
[1762634788916,9.00768178,3408.1,3408.0,0.001]
[1762634789638,3.88492897,3408.1,3408.0,0.001]
[1762634789814,3.42892897,3408.1,3408.0,0.001]
[1762634790018,4.72029147,3408.1,3408.0,0.001]
[1762634790432,4.99400895,3408.1,3408.0,0.001]
[1762634790629,0.49474277,3408.1,3408.0,0.001]
[1762634790921,3.99812897,3408.1,3408.0,0.001]
[1762634791427,3.54342897,3408.1,3408.0,0.001]
[1762634791963,4.05740318,3408.1,3408.0,0.001]
[1762634793761,5.77181518,3408.1,3408.0,0.001]
[1762634794065,7.09107674,3408.1,3408.0,0.001]
[1762634794564,7.49658074,3408.1,3408.0,0.001]
[1762634795327,7.37116292,3408.1,3408.0,0.001]
[1762634800470,7.09575343,3408.1,3408.0,0.001]
[1762634801163,11.58252694,3408.1,3408.0,0.001]
[1762634801933,11.73597647,3408.1,3408.0,0.001]
[1762634805530,11.54564999,3408.1,3408.0,0.001]
[1762634807575,12.00603815,3408.1,3408.0,0.001]
[1762634808373,12.31933661,3408.1,3408.0,0.001]
[1762634808580,3.3398624,3407.9,3407.8,0.001]
[1762634808779,7.49225892,3407.9,3407.8,0.001]
[1762634808977,8.25935738,3407.9,3407.8,0.001]
[1762634810046,8.25935738,3407.9,3407.4,0.001]
[1762634810047,4.59991886,3407.5,3407.4,0.001]
[1762634810260,10.05986658,3407.5,3407.4,0.001]
[1762634810462,11.56257527,3407.5,3407.4,0.001]
[1762634810687,11.38707826,3407.5,3407.4,0.001]
[1762634812468,11.20775499,3407.5,3407.4,0.001]
[1762634813445,11.66155499,3407.5,3407.4,0.001]
[1762634814043,11.20775499,3407.5,3407.4,0.001]
[1762634815383,10.68838078,3407.5,3407.4,0.001]
[1762634815582,9.01985999,3407.5,3407.4,0.4685]
[1762634816149,4.53308648,3407.5,3407.4,0.9425]
[1762634816354,9.5338342,3407.5,3407.4,0.9425]
[1762634817067,9.5338342,3407.5,3407.4,0.4685]
[1762634819882,9.5338342,3407.5,3407.4,0.001]
[1762634820185,9.6266342,3407.5,3407.4,0.001]
[1762634820692,9.2848065,3407.5,3407.4,0.001]
[1762634821064,9.1920065,3407.5,3407.4,0.001]
[1762634821309,4.46889159,3407.5,3407.4,0.9242]
[1762634821483,4.9828658,3407.5,3407.4,0.4685]
[1762634822214,5.0603658,3407.5,3407.4,0.001]
[1762634822414,6.70629502,3407.5,3407.4,0.001]
[1762634822571,7.17409502,3407.5,3407.4,0.001]
[1762634822903,4.46889159,3407.5,3407.4,0.9429]
[1762634824108,4.46889159,3407.5,3407.4,0.4872]
[1762634824268,4.46889159,3407.5,3407.4,0.001]
[1762634824686,4.46889159,3407.5,3407.4,0.4872]
[1762634825710,4.29205213,3407.5,3407.4,0.4872]
[1762634826927,4.29205213,3407.5,3407.4,0.9429]
[1762634828850,4.29205213,3407.5,3407.4,0.4872]
[1762634830047,4.29405213,3407.5,3407.4,0.4872]
[1762634830900,4.023841,3407.5,3407.4,0.4872]
[1762634832292,4.506845,3407.5,3407.4,0.001]
[1762634832533,6.89302871,3407.5,3407.4,0.001]
[1762634832924,7.04649914,3407.5,3407.4,0.001]
[1762634833125,6.6604416,3407.5,3407.4,0.001]
[1762634833302,7.04649914,3407.5,3407.4,0.001]
[1762634833698,6.6604416,3407.5,3407.4,0.001]
[1762634834040,7.04649914,3407.5,3407.4,0.001]
[1762634835838,6.43529571,3407.5,3407.4,0.001]
[1762634837042,6.82135325,3407.5,3407.4,0.001]
[1762634837357,6.43529571,3407.5,3407.4,0.001]
[1762634838757,3.34046525,3407.2,3407.1,0.006]
[1762634838956,9.06245158,3407.2,3407.1,0.006]
[1762634839157,9.53425158,3407.2,3407.1,0.006]
[1762634840878,9.2745368,3407.2,3407.1,0.006]
[1762634842573,9.66059434,3407.2,3407.1,0.006]
[1762634842883,9.93586336,3407.2,3407.1,0.006]
[1762634844965,11.19557536,3407.2,3407.1,0.006]
[1762634845270,10.80951782,3407.2,3407.1,0.006]
[1762634846076,10.50903775,3407.2,3407.1,0.006]
[1762634846539,10.50892041,3407.2,3407.1,0.006]
[1762634847676,10.9693782,3407.2,3407.1,0.006]
[1762634849154,10.4975782,3407.2,3407.1,0.006]
[1762634849357,10.4995782,3407.2,3407.1,0.006]
[1762634850253,10.03912041,3407.2,3407.1,0.006]
[1762634850458,10.93222795,3407.2,3407.1,0.006]
[1762634851181,11.4924228,3407.2,3407.1,0.006]
[1762634851562,15.97919631,3407.2,3407.1,0.006]
[1762634852075,4.6002634,3407.1,3407.0,0.001]
[1762634852277,6.38899509,3407.1,3407.0,0.001]
[1762634852485,11.10525317,3407.1,3407.0,0.001]
[1762634852795,11.52656071,3407.1,3407.0,0.001]
[1762634856299,11.15873083,3407.1,3407.0,0.001]
[1762634857801,10.73742329,3407.1,3407.0,0.001]
[1762634861101,9.15014626,3406.8,3406.7,0.001]
[1762634861282,9.63319794,3406.8,3406.7,0.001]
[1762634861483,10.08619794,3406.8,3406.7,0.001]
[1762634863284,10.23970903,3406.8,3406.7,0.001]
[1762634866228,9.98899136,3406.8,3406.7,0.001]
[1762634866431,11.24196061,3406.8,3406.7,0.001]
[1762634867128,11.70249021,3406.8,3406.7,0.001]
[1762634867338,12.18659021,3406.8,3406.7,0.001]
[1762634868927,12.60771997,3406.8,3406.7,0.001]
[1762634869430,2.93556248,3406.6,3406.3,0.001]
[1762634869621,9.31712462,3406.4,3406.3,0.001]
[1762634869957,9.5922763,3406.4,3406.3,0.4565]
[1762634870228,9.5922763,3406.4,3406.3,0.9069]
[1762634870229,9.70998515,3406.4,3406.3,0.9069]
[1762634870628,9.70998515,3406.4,3406.3,0.4514]
[1762634871415,10.13111491,3406.4,3406.3,0.4514]
[1762634871616,9.70998515,3406.4,3406.3,0.4514]
[1762634873218,9.78728515,3406.4,3406.3,0.001]
[1762634874655,10.20841491,3406.4,3406.3,0.001]
[1762634874849,10.20836469,3406.4,3406.3,0.001]
[1762634875919,10.13106469,3406.4,3406.3,0.001]
[1762634876320,9.7956766,3406.4,3406.3,0.001]
[1762634876521,9.8769766,3406.4,3406.3,0.001]
[1762634876831,4.60103891,3406.2,3406.1,0.005]
[1762634877044,4.88084037,3406.2,3406.1,0.005]
[1762634877857,5.04414037,3406.2,3406.1,0.005]
[1762634878158,5.03944037,3406.2,3406.1,0.4554]
[1762634878336,5.03944037,3406.2,3406.1,0.9109]
[1762634880538,5.50007325,3406.2,3406.1,0.9109]
[1762634881373,5.14614286,3406.2,3406.1,0.9109]
[1762634881539,5.14614286,3406.2,3406.1,0.4554]
[1762634881722,5.14614286,3406.2,3406.1,0.005]
[1762634882162,5.23214286,3406.2,3406.1,0.005]
[1762634882781,5.14614286,3406.2,3406.1,0.005]
[1762634884261,5.23214286,3406.2,3406.1,0.005]
[1762634884664,6.99304926,3406.2,3406.1,0.005]
[1762634884877,4.6011251,3406.1,3406.0,0.001]
[1762634885083,10.4862144,3406.1,3406.0,0.001]
[1762634885490,10.60393884,3406.1,3406.0,0.001]
[1762634885987,4.60155614,3405.6,3405.5,0.4935]
[1762634886188,4.60172859,3405.4,3405.1,0.4995]
[1762634886364,4.52460885,3405.4,3405.1,0.4995]
[1762634886559,5.11530885,3405.4,3405.1,0.4995]
[1762634886759,7.61328458,3405.4,3405.1,0.006]
[1762634887284,4.60190106,3405.2,3405.1,0.006]
[1762634887464,10.01899036,3405.2,3405.1,0.006]
[1762634887666,10.48699036,3405.2,3405.1,0.006]
[1762634887863,10.60474495,3405.2,3405.1,0.006]
[1762634888060,11.48984873,3405.2,3405.1,0.006]
[1762634888464,11.48984873,3405.2,3404.8,0.001]
[1762634888465,3.34236156,3405.0,3404.8,0.001]
[1762634888649,4.60215981,3404.9,3404.6,0.001]
[1762634888877,9.31859041,3404.7,3404.6,0.001]
[1762634889051,10.01482163,3404.7,3404.6,0.001]
[1762634889257,10.13258281,3404.7,3404.6,0.001]
[1762634889996,10.22378281,3404.7,3404.6,0.001]
[1762634890180,2.9372026,3404.6,3404.5,0.001]
[1762634890489,3.34305173,3404.2,3404.1,0.1919]
[1762634890694,3.61815319,3404.2,3404.1,0.1919]
[1762634890890,3.61815319,3404.2,3404.1,0.6431]
[1762634891103,3.61815319,3404.2,3404.1,1.1366]
[1762634891330,4.50148429,3404.2,3404.1,1.1366]
[1762634891462,4.27628575,3404.2,3404.1,1.1366]
[1762634891820,4.73711278,3404.2,3404.1,1.1366]
[1762634892311,4.33160878,3404.2,3404.1,1.1366]
[1762634896609,4.08951852,3404.2,3404.1,1.1366]
[1762634898005,4.65808676,3404.2,3404.1,1.1366]
[1762634898209,4.93194428,3404.2,3404.1,1.1366]
[1762634899413,1.99439655,3404.2,3404.1,1.1366]
[1762634899601,4.93194428,3404.2,3404.1,1.1366]
[1762634900408,4.47111725,3404.2,3404.1,1.1366]
[1762634901418,1.53356952,3404.2,3404.1,1.1366]
[1762634901577,1.35401389,3404.2,3404.1,1.1366]
[1762634901912,4.29156162,3404.2,3404.1,1.1366]
[1762634903821,0.27385752,3404.2,3404.1,1.1366]
[1762634904818,0.27385752,3404.2,3404.1,1.54404006]
[1762634905596,0.27585752,3404.2,3404.1,1.54404006]
[1762634906017,0.27585752,3404.2,3404.1,1.1366]
[1762634906477,2.94158714,3404.2,3404.1,0.6431]
[1762634906679,2.94158714,3404.2,3404.1,1.1366]
[1762634908828,0.00403941,3404.2,3404.1,1.1366]
[1762634909036,2.94158714,3404.2,3404.1,1.1366]
[1762634909193,3.39388357,3404.2,3404.1,1.1366]
[1762634911619,3.20800247,3404.2,3404.1,0.4572]
[1762634912290,7.70542421,3404.2,3404.1,0.9505]
[1762634912533,7.70542421,3404.2,3404.1,0.006]
[1762634912734,8.96513621,3404.2,3404.1,0.4643]
[1762634912890,8.96513621,3404.2,3404.1,0.9576]
[1762634913987,8.96513621,3404.2,3404.1,0.4643]
[1762634914609,9.45843621,3404.2,3404.1,0.4643]
[1762634914815,9.45843621,3404.2,3404.1,0.9576]
[1762634915144,9.42594099,3404.2,3404.1,0.9576]
[1762634916194,9.42594099,3404.2,3404.1,1.1392]
[1762634916701,9.19558785,3404.2,3404.1,1.1392]
[1762634920429,9.19558785,3404.2,3404.1,0.4643]
[1762634920809,9.19558785,3404.2,3404.1,0.9576]
[1762634921011,9.65988785,3404.2,3404.1,0.9576]
[1762634921735,7.13453495,3404.2,3404.1,0.9576]
[1762634922038,9.6112779,3404.2,3404.1,0.9576]
[1762634922238,9.6112779,3404.2,3404.1,0.4643]
[1762634923203,9.6132779,3404.2,3404.1,0.4643]
[1762634924339,9.6132779,3404.2,3404.1,0.4733]
[1762634926043,9.6132779,3404.2,3404.1,0.006]
[1762634926956,9.39731083,3404.2,3404.1,0.006]
[1762634927152,8.93301083,3404.2,3404.1,0.006]
[1762634927559,9.13098065,3404.2,3404.1,0.006]
[1762634929867,9.13098065,3404.2,3404.1,0.4733]
[1762634931174,9.40666959,3404.2,3404.1,0.4733]
[1762634931677,9.40666959,3404.2,3404.1,0.006]
[1762634931874,9.17034023,3404.2,3404.1,0.006]
[1762634932239,9.26054023,3404.2,3404.1,0.006]
[1762634932555,9.17034023,3404.2,3404.1,0.4733]
[1762634933959,9.38697547,3404.2,3404.1,0.4733]
[1762634935872,9.38697547,3404.2,3404.1,0.9677]
[1762634936791,9.17754973,3404.2,3404.1,0.9677]
[1762634938152,9.17754973,3404.2,3404.1,0.4733]
[1762634940781,8.76294467,3404.2,3404.1,0.9677]
[1762634941855,8.4693177,3404.2,3404.1,0.9677]
[1762634942054,0.27768894,3404.2,3404.1,0.9557]
[1762634942590,0.27768894,3404.2,3404.1,1.34505556]
[1762634943755,0.002,3404.6,3404.3,2.93737767]
[1762634944076,0.002,3404.6,3404.5,0.4629]
[1762634944570,0.002,3404.6,3404.5,0.9453]
[1762634946589,0.002,3404.6,3404.5,3.88258888]
[1762634946771,0.002,3404.6,3404.5,4.56459808]
[1762634947095,2.62644856,3405.0,3404.9,0.4629]
[1762634948361,2.62644856,3405.0,3404.9,0.9453]
[1762634949015,2.62644856,3405.0,3404.9,0.4629]
[1762634949310,3.04105362,3405.0,3404.9,0.4629]
[1762634949815,3.04105362,3405.0,3404.9,0.9453]
[1762634951477,0.41460506,3405.0,3404.9,0.9453]
[1762634951702,3.35146262,3405.0,3404.9,0.4629]
[1762634951909,2.93702323,3404.9,3404.6,0.4824]
[1762634952077,2.62042445,3404.9,3404.8,0.4629]
[1762634953037,0.41460506,3405.0,3404.8,0.4629]
[1762634953185,0.41460506,3405.0,3404.9,0.4629]
[1762634953694,0.41460506,3405.0,3404.9,0.9453]
[1762634955096,2.93678774,3405.1,3404.9,0.9453]
[1762634955412,2.93678774,3405.1,3405.0,0.4629]
[1762634955831,3.21143647,3405.1,3405.0,0.4629]
[1762634956998,2.93641348,3405.1,3404.7,0.4824]
[1762634957193,0.27464873,3405.0,3404.7,0.82446657]
[1762634957398,0.27464873,3404.9,3404.7,0.82446657]
[1762634957595,0.27464873,3404.8,3404.7,0.34206657]
[1762634957907,0.68925379,3404.8,3404.5,0.001]
[1762634958105,0.41460506,3404.8,3404.7,0.4629]
[1762634958334,0.68924445,3404.8,3404.7,0.4629]
[1762634958515,0.27463939,3404.8,3404.7,0.9453]
[1762634960140,0.27463939,3404.8,3404.7,1.33365748]
[1762634962032,0.09540369,3404.8,3404.7,1.33365748]
[1762634964000,0.09540369,3404.8,3404.7,3.88241633]
[1762634964543,0.09540369,3404.8,3404.7,0.9453]
[1762634966052,0.09540369,3404.8,3404.7,3.88241633]
[1762634966235,0.09540369,3404.8,3404.7,0.9453]